Cogmind - Beta 16 @@@ ROGUE MODE // 2025.11.18 @ 13:44:55 Player: Scringis Result: Destroyed by as-08713 with Assembled Heavy Rifle Performance ------------- Evolutions (0) 0 Regions Visited (2) 400 Robots Destroyed (20) 100 Value Destroyed (331) 331 Prototype IDs (0) 0 Alien Tech Used (0) 0 Bonus (0) 0 TOTAL SCORE: 831 Bonus ------- None Cogmind --------- Core Integrity 0/250 Matter 284/300 Energy 160/160 System Corruption 0% Temperature Cool (0) Movement Treading (160) Location -10/Mines Parts ------- > --- POWER (1) -------- Light Nuclear Core > --- PROPULSION (2) --- Light Treads > --- UTILITY (2) ------ Small Storage Unit Hardened Light Armor Plating > --- WEAPON (2) ------- Assault Rifle Heavy Assault Rifle > --- INVENTORY (8) ---- Light Ion Engine Cooling System Hardened Light Armor Plating Hacking Suite Heavy Assault Rifle Heavy Assault Rifle Peak State ------------ > --- POWER ------------ Light Nuclear Core > --- PROPULSION ------- Light Treads Light Treads > --- UTILITY ---------- Small Storage Unit Hardened Light Armor Plating > --- WEAPON ----------- Light EM Pulse Cannon Heavy Assault Rifle > --- INVENTORY -------- Cooling System Hardened Light Armor Plating Hacking Suite Assault Rifle Heavy Assault Rifle Heavy Assault Rifle [Rating: 13] Favorites ----------- Power Ion Engine Engine Ion Engine Power Core Light Nuclear Core Propulsion Light Treads Treads Light Treads Utility Small Storage Unit Storage Small Storage Unit Protection Hardened Light Armor Plating Weapon Light Assault Rifle Energy Gun EM Pulse Gun Energy Cannon Light EM Pulse Cannon Ballistic Gun Light Assault Rifle Ballistic Cannon Light Cannon Build | -11 -10 -10 ------- Run | Yrd Mat Min Slots Evolved . | . . . Power . | . . . Propulsion . | . . . Utility . | . . . Weapon . | . . . Parts Attached 13 | 6 6 1 Power 3 | 1 2 . Engine 2 | 1 1 . Core 1 | . 1 . Reactor . | . . . Propulsion 2 | 2 . . Treads 2 | 2 . . Leg . | . . . Wheel . | . . . Hover . | . . . Flight . | . . . Utility 2 | 1 1 . Device . | . . . Storage 1 | 1 . . Processor . | . . . Hackware . | . . . Protection 1 | . 1 . Artifact . | . . . Weapon 6 | 2 3 1 Energy Gun 1 | 1 . . Energy Cannon 1 | . 1 . Ballistic Gun 3 | 1 1 1 Ballistic Cannon 1 | . 1 . Launcher . | . . . Special Weapon . | . . . Impact Weapon . | . . . Slashing Weapon . | . . . Piercing Weapon . | . . . Special Melee Weapon . | . . . Unidentified Prototypes . | . . . Parts Lost 5 | . 3 2 Power 2 | . 2 . Propulsion 1 | . . 1 Utility . | . . . Weapon 2 | . 1 1 Highest Loss Streak 2 | . 1 2 To Critical Strikes . | . . . Average Backups 4 | 1 5 6 Power . | . . . Propulsion . | . . . Utility 1 | . 1 3 Weapon 2 | . 3 2 Tool/Special . | . . . Unused Backups 9 | . 3 6 Power 1 | . . 1 Propulsion . | . . . Utility 3 | . . 3 Weapon 5 | . 3 2 Tool/Special . | . . . Average Slot Usage (%) 92 | . 92 97 Engine 8 | . 9 . Core 5 | . 4 14 Treads 27 | . 28 26 Storage 14 | . 14 14 Protection 7 | . 7 14 Energy Gun 2 | . 3 . Energy Cannon 6 | . 5 11 Ballistic Gun 14 | . 14 15 Ballistic Cannon 4 | . 5 . Peak Build Rating 13 | 6 13 13 Average Rating 8 | 3 8 12 On Entrance 6 | . 6 13 Avg Prop Armor Cover (%) . | . . . Naked Turns . | . . . Heaviest Build 22 | 13 22 22 Greatest Support 40 | 40 40 40 Greatest Overweight (x) . | . . . Average Overweight (x) . | . . . Largest Inventory Capacity 8 | 8 8 8 Average Capacity 7 | 6 8 8 Most Carried 7 | 5 7 7 Average Carried 4 | 1 5 6 Final Capacity 8 | 8 8 8 Final Carried 6 | 1 6 6 Class Distribution -------------------- 100% | Mutant Dominant Class ---------------- Mutant | -10/Materials Mutant | -10/Mines Resources | -11 -10 -10 ----------- Run | Yrd Mat Min Matter Collected 454 | 260 176 18 Remotely . | . . . Salvage Created 532 | . 430 102 Parts 42 | . 36 6 Haulers Intercepted 2 | . 2 . Recyclers Shooed . | . . . Parts Field Recycled . | . . . Retrieved Matter . | . . . Parts Self-Destructed . | . . . Prevented . | . . . Parts Restored . | . . . Kills | -11 -10 -10 ------- Run | Yrd Mat Min Combat Hostiles Destroyed 15 | . 11 4 Guns 8 | . 6 2 Cannons 4 | . 4 . AOE 2 | . . 2 Classes Destroyed 7 | . 5 2 Hauler 2 | . 2 . Recycler 1 | . . 1 Operator 2 | . 2 . Watcher 1 | . 1 . Swarmer 9 | . 6 3 Grunt 5 | . 5 . Assembled 1 | . . 1 Best Kill Streak 7 | . 7 4 Combat Bots Only 6 | . 6 3 Max Kills in Single Turn 2 | . 2 2 Gunslinging . | . . . Exploded 2 | . . 2 Melee . | . . . Uniques/NPCs Destroyed . | . . . Combat | -11 -10 -10 -------- Run | Yrd Mat Min Hostile Shots Fired 109 | . 87 22 Missed 23 | . 19 4 Hits 86 | . 68 18 Melee 2 | . . 2 Projectile 84 | . 68 16 AOE 4 | . . 4 Critical Strikes 1 | . 1 . Damage Taken 1163 | . 756 407 Core 255 | . 128 127 Absorbed by Shields . | . . . Core Remaining (%) 100 | 100 . . Volleys Fired 45 | . 39 6 Largest 2 | . 2 2 Hottest 79 | . 79 79 Shots Fired 88 | . 77 11 Gun 53 | . 46 7 Cannon 35 | . 31 4 Launcher . | . . . Special . | . . . Kinetic 61 | . 54 7 Thermal . | . . . Explosive . | . . . Electromagnetic 27 | . 23 4 Robot Hit Streak 13 | . 13 2 Robot Miss Streak 6 | . 5 6 Penetration Max . | . . . Secondary Targets . | . . . Shots Hit Robots 45 | . 42 3 Core Hits 23 | . 18 5 Critical Kills . | . . . Critical Parts Destroyed . | . . . Critical Strikes . | . . . Melee Attacks . | . . . Impact . | . . . Slashing . | . . . Piercing . | . . . Sneak Attacks . | . . . Combat Hostiles . | . . . Follow-up Attacks . | . . . Damage Inflicted 944 | . 777 167 Guns 334 | . 291 43 Cannons 463 | . 425 38 Explosions 126 | . 45 81 Melee . | . . . Ramming 21 | . 16 5 Kinetic 471 | . 428 43 Thermal 126 | . 45 81 Explosive . | . . . Electromagnetic 326 | . 288 38 Impact . | . . . Slashing . | . . . Piercing . | . . . Highest Corruption . | . . . Average Corruption . | . . . Corruption Purged . | . . . Corruption Blocked . | . . . Overload Shots . | . . . Overflow Damage 14 | . 14 . Projectiles 14 | . 14 . Explosions . | . . . Melee . | . . . Knockbacks 4 | . 4 . Impact . | . . . Kinetic 4 | . 4 . Secondary . | . . . Self-Inflicted Damage . | . . . Shots . | . . . Rammed 4 | . 3 1 Targets Rammed 5 | . 3 2 Kicked . | . . . Crushed 1 | . . 1 Highest Temperature 219 | . 219 117 Average Temperature 46 | . 47 45 Received Heat Transfer 110 | . 90 20 Siege Activations . | . . . Martial Activations . | . . . Shielding Activations . | . . . Robots Disrupted . | . . . Combat Hostiles . | . . . Robots Corrupted 1 | . 1 . Combat Hostiles 1 | . 1 . Parts Fried . | . . . Impact Corruptions . | . . . Robots Melted . | . . . Combat Hostiles . | . . . Parts Melted . | . . . Heat Transferred 150 | . 50 100 Parts Sabotaged . | . . . Parts Stolen . | . . . Parts Stripped . | . . . Power Chain Reactions 2 | . 1 1 Alert | -11 -10 -10 ------- Run | Yrd Mat Min Maximum Alert Level . | . . . Low Security (%) 100 | 100 100 100 Level 1 . | . . . Level 2 . | . . . Level 3 . | . . . Level 4 . | . . . Level 5 . | . . . High Security . | . . . Max Security . | . . . Peak Influence 131 | . 131 84 Initial 10 | . . 10 Average 41 | . 42 61 Influence Increases 449 | . 370 79 Destroy 0b10 Robot/C 280 | . 220 60 Destroy 0b10 Robot/NC 30 | . 25 5 Destroy Leader 66 | . 56 10 Successful Hack 35 | . 35 . Destroy Structure 8 | . 4 4 Lose Combat Pursuer 30 | . 30 . Influence Decreases 420 | . 343 77 Entered New Map 17 | . . 17 Time Decay 353 | . 313 40 Lost Part 50 | . 30 20 Squads Dispatched 4 | . 4 . Investigation 2 | . 2 . Extermination . | . . . Reinforcement 2 | . 2 . Assault . | . . . Garrison . | . . . Intercept . | . . . Searches Triggered . | . . . Construction Impeded . | . . . Haulers Reinforced . | . . . Active Scanning Responses . | . . . Cargo Convoy Interrupts . | . . . Stealth | -11 -10 -10 --------- Run | Yrd Mat Min Distress Signals 4 | . 4 . Communications Jammed . | . . . Distress Signals . | . . . Times Spotted 44 | . 19 25 Peak Tracking Total 18 | . 7 18 Tactical Retreats 2 | . 2 . Traps | -11 -10 -10 ------- Run | Yrd Mat Min Traps Triggered 3 | . 3 . Indirectly . | . . . Trap Hack Attempts . | . . . Triggered . | . . . Disarmed . | . . . Reprogrammed . | . . . Reused . | . . . Traps Extracted . | . . . Installed . | . . . Triggered . | . . . Machines | -11 -10 -10 ---------- Run | Yrd Mat Min Machines Disabled . | . . . Max in Single Turn . | . . . Machines Repaired . | . . . Machines Dismantled . | . . . Machines Sabotaged . | . . . Overloaded Fab Kills . | . . . Hacking | -11 -10 -10 --------- Run | Yrd Mat Min Machines Accessed 5 | . 5 . Terminals 5 | . 5 . Fabricators . | . . . Repair Stations . | . . . Recycling Units . | . . . Scanalyzers . | . . . Garrison Access . | . . . Total Hacks 12 | . 12 . Successful 7 | . 7 . Failed 5 | . 5 . Catastrophic . | . . . Database Lockouts . | . . . Manual 12 | . 12 . Terminals 12 | . 12 . Fabricators . | . . . Repair Stations . | . . . Recycling Units . | . . . Scanalyzers . | . . . Garrison Access . | . . . Terminal Hacks 2 | . 2 . Branch Access Points 1 | . 1 . Registered Components 1 | . 1 . Fabricator Hacks . | . . . Repair Station Hacks . | . . . Recycling Unit Hacks . | . . . Scanalyzer . | . . . Garrison Access Hacks . | . . . Unauthorized Hacks 5 | . 5 . Terminals 5 | . 5 . Botnet 5 | . 5 . Fabricators . | . . . Repair Stations . | . . . Recycling Units . | . . . Scanalyzers . | . . . Garrison Access . | . . . Data Cores Recovered . | . . . Used . | . . . Hacking Detections 4 | . 4 . Full Trace Events 1 | . 1 . Feedback Events . | . . . Feedback Blocked . | . . . Robot Schematics Acquired . | . . . Robots Built . | . . . Authchips . | . . . Time . | . . . Total Robot Build Rating . | . . . Part Schematics Acquired . | . . . Parts Built . | . . . Authchips . | . . . Time . | . . . Total Part Build Rating . | . . . Part Studies Acquired . | . . . Parts Repaired . | . . . Time . | . . . Parts Recycled . | . . . Recycled Matter . | . . . Retrieved Matter . | . . . Retrieved Components . | . . . Parts Scanalyzed . | . . . Part Schematics Acquired . | . . . Parts Damaged . | . . . Bothacking | -11 -10 -10 ------------ Run | Yrd Mat Min Used RIF Installer . | . . . Robots Hacked . | . . . Non-combat . | . . . Combat . | . . . Robot Hacks Applied . | . . . Relay Couplers Released . | . . . Fabnet Peak Effective % . | . . . Robots Rewired . | . . . Allies Hacked . | . . . Hacks Repelled . | . . . Allies | -11 -10 -10 -------- Run | Yrd Mat Min Total Allies . | . . . Largest Group . | . . . Highest-Rated Group . | . . . Highest-Rated Ally . | . . . Total Orders . | . . . Ally Attacks . | . . . Total Damage . | . . . Kills . | . . . Allies Corrupted . | . . . Allies Melted . | . . . Intel | -11 -10 -10 ------- Run | Yrd Mat Min Active Infowar (turns) . | . . . Robot Analysis Total . | . . . Derelict Logs Recovered . | . . . Drone Launches . | . . . Drone Recoveries . | . . . Exploration | -11 -10 -10 ------------- Run | Yrd Mat Min Turns Passed 1030 | 67 872 91 Spaces Moved 535 | 40 456 39 Core 8 | 8 . . Treads 527 | 32 456 39 Legs . | . . . Wheels . | . . . Hover . | . . . Flight . | . . . Fastest Speed 50 | 50 160 160 Average Speed 158 | 138 160 160 Slowest Speed 160 | 160 160 160 Overloaded Moves . | . . . Propulsion Burnouts . | . . . Robots Hopped . | . . . Potential Cave-ins . | . . . Cave-ins Triggered . | . . . Exploration Rate (%) 29 | 3 74 12 Regions Visited 2 Branch Regions 1 Pre-discovered Areas . | . . . Known Exits Taken 1 | . 1 . Unknown Exits Taken 1 | 1 . . Scrap Searched . | . . . Spaces Dug . | . . . Terrain Destroyed 6 | . 2 4 Melee . | . . . Projectile . | . . . AOE 6 | . 2 4 Terrain Rammed . | . . . Walls Destroyed . | . . . Machines Disabled . | . . . Actions | -11 -10 -10 --------- Run | Yrd Mat Min Total 634 | 52 526 56 Wait 9 | . 2 7 Move 533 | 39 455 39 Hop . | . . . Pick Up 23 | 7 15 1 Fast Attach . | . . . Attach 11 | 6 4 1 Detach . | . . . Swap 2 | . 2 . Drop 6 | . 6 . Fire 45 | . 39 6 Melee . | . . . Ram . | . . . Kick . | . . . Crush 5 | . 3 2 Escape Stasis . | . . . Rewire . | . . . Trap . | . . . Miscellaneous . | . . . Route ------- -11/Scrapyard -10/Materials (discovered 5 exits: [*Mat x3] / *Min x2) -10/Mines (discovered 1 exit: [*Mat]) History --------- Turn | Location | Event 4 | -11/Scrapyard | Discovered new exit (range 16) 68 | -11/Scrapyard | Entered Materials 179 | -10/Materials | Discovered new exit (range 13) 185 | -10/Materials | Identified exit to Mines 312 | -10/Materials | Build established: Mutant 346 | -10/Materials | Discovered new exit (range 15) 546 | -10/Materials | Discovered new exit (range 16) 776 | -10/Materials | Discovered new exit (range 16) 823 | -10/Materials | Core integrity fell below 50% 940 | -10/Materials | Entered Mines 957 | -10/Mines | Discovered new exit (range 8) 988 | -10/Mines | Assembled infested the area 993 | -10/Mines | Assisted by a Guerilla fighting off Assembled 1022 | -10/Mines | Core integrity fell below 20% 1031 | -10/Mines | Destroyed by as-08713 with Assembled Heavy Rifle Last Messages --------------- 01020_ The unstable cave ceiling collapses. 01020_ Lgt. Treads destroyed. 01020_ as-26803 destroyed. 01021_ as-52453 destroyed. 01022_ as-31860 destroyed. 01023_ The unstable cave ceiling collapses. 01025_ as-78953 destroyed. 01025_ as-17318 destroyed. 01025_ as-93828 destroyed. 01025_ as-17888 destroyed. 01025_ D-53 Grenadier destroyed. 01025_ as-96525 destroyed. 01025_ as-24034 destroyed. 01025_ as-21248 destroyed. 01025_ as-13136 destroyed. 01025_ as-00382 destroyed. 01025_ as-19934 destroyed. 01026_ The unstable cave ceiling collapses. 01027_ D-53 Grenadier destroyed. 01027_ as-18146 destroyed. Map ----- +----------------------------------------------------+ | ?????????????????????????????????????????????????? | | ?????????????????????????????????????????????????? | | ?????????????????????????#########???????????????? | | ???????????????????###?### #???????????????? | | ???????????????????#" ##"# #???????????????? | | ???????????????????# % % < #???????????????? | | ???????????????????# "## #???????????????? | | ???????????????????# "##########???????????????? | | ???????????????????# ##???????????????????????? | | ???????????????????## ##??????????????????????? | | ????????????????????## ##?????????????????????? | | ?????????????????????## ##????????????????????? | | ??????????????????????## ##???????????????????? | | ???????????????????????## ##??????????????????? | | ????????????????????????# ##?????????????????? | | ????????????????????????# #?????????????????? | | ????????????????????????# ##????????????????? | | ????????????????????????## ##???????????????? | | ?????????????????????????### #???????????????? | | ???????????????????????????## #???????????????? | | ????????????????????????????## ##???????????????? | | ???????????????????????#####?# #????????????????? | | ????????????????????#### # ### #????????????????? | | ???????????????????## ## #????????????????? | | ???????????????????# r #????????????????? | | ???????????????????# # @% ####????????????????? | | ??????????????????# = % #???????????????????? | | ??????????????????## #???????????????????? | | ???????????????????# a #???????????????????? | | ?????????????????? a%a # #???????????????????? | | ?????????????????# % ##???????????????????? | | ?????????????????# =% ##????????????????????? | | ?????????????????## ?????????????????????? | | ??????????????????## ?????????????????????? | | ???????????????????# ## ?????????????????????? | | ???????????????????# ?##< ?????????????????????? | | ???????????????????# ??## ????????????????????? | | ???????????????????#?????####????????????????????? | | ?????????????????????????????????????????????????? | | ?????????????????????????????????????????????????? | | ?????????????????????????????????????????????????? | | ?????????????????????????????????????????????????? | | ?????????????????????????????????????????????????? | | ?????????????????????????????????????????????????? | | ?????????????????????????????????????????????????? | | ?????????????????????????????????????????????????? | | ?????????????????????????????????????????????????? | | ?????????????????????????????????????????????????? | | ?????????????????????????????????????????????????? | | ?????????????????????????????????????????????????? | +----------------------------------------------------+ Best States ------------- Heat Dissipation 25 Energy Generation 14 Energy Capacity 250 Matter Stores 300 Matter Capacity 300 Sight Range 16 Terrain Scan Density 10 Armor Coverage 150 Evasion (%) 40 Recoil Reduction 2 Item Schematics ----------------- None Robot Schematics ------------------ None Fabricated ------------ Nothing Repaired ---------- Nothing Studied --------- None Alien Tech Used ----------------- None Achievements -------------- None Challenges ------------ None Game ------ Seed JammingRiotRocket Manual? 0 Play Time 00:06:02 Cumulative 51.5 hours Start 2025.11.18 @ 13:39:40 End 2025.11.18 @ 13:44:55 Sessions 1 Manual Loads 0 Difficulty Rogue Special Mode None Game No. 144 Rogue 144 Adventurer 0 Explorer 0 Win Type - Total 0 Types 0/0/0/0/0/0/0/0/0/0 Lore% 32 Gallery% 32 Achievement% 27 Wizard Run 0 Options --------- Layout 1 ASCII 0 Keyboard 0 Movement Numpad Keybinds 0 Fullscreen 2 Font 24/Smallcaps Map View 50x35 Zoom Use 0% Tactical HUD 1 Map Filters NONE Filters NONE Steam 1 RUN: a7a7f970-0b5c-45e6-8a2e-fa61a3f439cb